[Event "*** Titled Tuesday Blitz"]
[Site "Chess.com"]
[Date "2021.03.09"]
[Round "9"]
[White "FredyMatsuura"]
[Black "IMVoja"]
[Result "0-1"]
[WhiteElo "2216"]
[BlackElo "2415"]
[TimeControl "180+1"]
[EndTime "11:47:44 PST"]
[Termination "IMVoja won on time"]

1. d4 {[%clk 0:03:00.9]} 1... Nf6 {[%clk 0:02:59.3]} 2. c4 {[%clk 0:03:00.6]}
2... c5 {[%clk 0:02:59.2]} 3. d5 {[%clk 0:03:00.6]} 3... b5 {[%clk 0:02:58.3]}
4. Nf3 {[%clk 0:03:00.7]} 4... g6 {[%clk 0:02:56.2]} 5. a4 {[%clk 0:02:59.9]}
5... b4 {[%clk 0:02:55.1]} 6. Nbd2 {[%clk 0:02:59.8]} 6... Bg7 {[%clk
0:02:55.3]} 7. e4 {[%clk 0:02:59.3]} 7... d6 {[%clk 0:02:55.3]} 8. Bd3 {[%clk
0:02:58.9]} 8... O-O {[%clk 0:02:55.6]} 9. O-O {[%clk 0:02:58.5]} 9... e5 {[%clk
0:02:54.9]} 10. dxe6 {[%clk 0:02:54.3]} 10... fxe6 {[%clk 0:02:46.7]} 11. e5
{[%clk 0:02:54.1]} 11... dxe5 {[%clk 0:02:38.5]} 12. Nxe5 {[%clk 0:02:53.9]}
12... Bb7 {[%clk 0:02:38.9]} 13. Ndf3 {[%clk 0:02:49.1]} 13... Nc6 {[%clk
0:02:29.1]} 14. Nxc6 {[%clk 0:02:34.6]} 14... Bxc6 {[%clk 0:02:28.1]} 15. Ne5
{[%clk 0:02:35.2]} 15... Bb7 {[%clk 0:02:22.3]} 16. Qe2 {[%clk 0:02:27.2]} 16...
Qc7 {[%clk 0:02:11.3]} 17. Bg5 {[%clk 0:02:20.5]} 17... Nh5 {[%clk 0:02:02.9]}
18. Rfe1 {[%clk 0:01:58.7]} 18... Rae8 {[%clk 0:01:52.1]} 19. Qe3 {[%clk
0:01:50.4]} 19... a5 {[%clk 0:01:26.6]} 20. Rad1 {[%clk 0:01:46.9]} 20... Ba8
{[%clk 0:01:10.2]} 21. Rd2 {[%clk 0:01:19.9]} 21... Qb7 {[%clk 0:01:08.6]} 22.
Bf1 {[%clk 0:01:12.7]} 22... Qc7 {[%clk 0:01:03.4]} 23. Rd7 {[%clk 0:01:08.3]}
23... Qc8 {[%clk 0:00:58]} 24. Red1 {[%clk 0:01:00.3]} 24... Nf6 {[%clk
0:00:57.3]} 25. R7d6 {[%clk 0:00:35.6]} 25... Nh5 {[%clk 0:00:48.3]} 26. f4
{[%clk 0:00:27.8]} 26... Nf6 {[%clk 0:00:47.6]} 27. Be2 {[%clk 0:00:24.5]} 27...
Ne4 {[%clk 0:00:47.5]} 28. Rd7 {[%clk 0:00:16]} 28... h6 {[%clk 0:00:46.8]} 29.
Bh4 {[%clk 0:00:13]} 29... Nf6 {[%clk 0:00:46.8]} 30. R7d6 {[%clk 0:00:08.5]}
30... Ne4 {[%clk 0:00:43.7]} 31. Rd7 {[%clk 0:00:08.1]} 31... g5 {[%clk
0:00:38.1]} 32. fxg5 {[%clk 0:00:05.8]} 32... Bxe5 {[%clk 0:00:35.2]} 33. gxh6
{[%clk 0:00:02.4]} 33... Bf6 {[%clk 0:00:20.5]} 0-1

[Event "*** Titled Tuesday Blitz"]
[Site "Chess.com"]
[Date "2021.03.09"]
[Round "9"]
[White "Legendinunknown"]
[Black "AttackSparrow"]
[Result "1/2-1/2"]
[WhiteElo "2631"]
[BlackElo "2537"]
[TimeControl "180+1"]
[EndTime "11:47:46 PST"]
[Termination "Game drawn by repetition"]

1. d4 {[%clk 0:02:58.2]} 1... Nf6 {[%clk 0:02:55.3]} 2. c4 {[%clk 0:02:58.6]}
2... g6 {[%clk 0:02:54.7]} 3. Nc3 {[%clk 0:02:58]} 3... d5 {[%clk 0:02:53.8]} 4.
cxd5 {[%clk 0:02:55.9]} 4... Nxd5 {[%clk 0:02:54.7]} 5. e4 {[%clk 0:02:56.5]}
5... Nxc3 {[%clk 0:02:53.8]} 6. bxc3 {[%clk 0:02:57.4]} 6... Bg7 {[%clk
0:02:54]} 7. Bc4 {[%clk 0:02:58.3]} 7... c5 {[%clk 0:02:54.3]} 8. Ne2 {[%clk
0:02:57.5]} 8... Nc6 {[%clk 0:02:54.5]} 9. Be3 {[%clk 0:02:57.8]} 9... O-O
{[%clk 0:02:53]} 10. h4 {[%clk 0:02:57.5]} 10... h5 {[%clk 0:02:46.5]} 11. f3
{[%clk 0:02:55.7]} 11... b6 {[%clk 0:02:45.5]} 12. Kf2 {[%clk 0:02:54.6]} 12...
Bb7 {[%clk 0:02:44.3]} 13. Rc1 {[%clk 0:02:52.3]} 13... Qc8 {[%clk 0:02:40]} 14.
Qd2 {[%clk 0:02:41]} 14... Rd8 {[%clk 0:02:39.1]} 15. d5 {[%clk 0:02:27.6]}
15... Na5 {[%clk 0:02:38.7]} 16. Bd3 {[%clk 0:02:26.1]} 16... c4 {[%clk
0:02:30.8]} 17. Bb1 {[%clk 0:02:22.9]} 17... e6 {[%clk 0:02:31.2]} 18. Bd4
{[%clk 0:02:20.8]} 18... exd5 {[%clk 0:02:29.3]} 19. Bxg7 {[%clk 0:02:18.8]}
19... Kxg7 {[%clk 0:02:29.1]} 20. e5 {[%clk 0:02:11.8]} 20... Nc6 {[%clk
0:02:16.8]} 21. Nd4 {[%clk 0:02:10]} 21... Nxe5 {[%clk 0:02:11.8]} 22. Rhe1
{[%clk 0:02:06.4]} 22... Re8 {[%clk 0:02:10.6]} 23. Qg5 {[%clk 0:01:33.3]} 23...
Qc7 {[%clk 0:01:12.9]} 24. Nf5+ {[%clk 0:01:29.8]} 24... Kg8 {[%clk 0:01:13.1]}
25. Nh6+ {[%clk 0:01:01.1]} 25... Kg7 {[%clk 0:01:11]} 26. Nf5+ {[%clk
0:00:59.9]} 26... Kg8 {[%clk 0:01:11.3]} 27. Re3 {[%clk 0:00:56.4]} 27... Nd3+
{[%clk 0:00:55.4]} 28. Bxd3 {[%clk 0:00:53.8]} 28... Rxe3 {[%clk 0:00:52.6]} 29.
Qf6 {[%clk 0:00:21.8]} 29... gxf5 {[%clk 0:00:48]} 30. Qg5+ {[%clk 0:00:21.7]}
30... Kf8 {[%clk 0:00:48.2]} 31. Qh6+ {[%clk 0:00:21.9]} 31... Kg8 {[%clk
0:00:47.9]} 32. Qg5+ {[%clk 0:00:22.1]} 32... Kf8 {[%clk 0:00:39.4]} 33. Qh6+
{[%clk 0:00:22.3]} 33... Kg8 {[%clk 0:00:16.2]} 34. Bxf5 {[%clk 0:00:20.6]}
34... Re6 {[%clk 0:00:11.2]} 35. Bh7+ {[%clk 0:00:19.8]} 35... Kh8 {[%clk
0:00:10.8]} 36. Bg6+ {[%clk 0:00:20.3]} 36... Kg8 {[%clk 0:00:10.9]} 37. Bh7+
{[%clk 0:00:20.2]} 37... Kh8 {[%clk 0:00:10.1]} 38. Bg6+ {[%clk 0:00:21.1]}
38... Kg8 {[%clk 0:00:10.5]} 39. Bh7+ {[%clk 0:00:21.2]} 1/2-1/2

[Event "*** Titled Tuesday Blitz"]
[Site "Chess.com"]
[Date "2021.03.09"]
[Round "9"]
[White "LionChessClub"]
[Black "Sergey85Rodchenkov"]
[Result "1/2-1/2"]
[WhiteElo "2610"]
[BlackElo "2520"]
[TimeControl "180+1"]
[EndTime "11:47:47 PST"]
[Termination "Game drawn by repetition"]

1. e4 {[%clk 0:03:00.9]} 1... c5 {[%clk 0:02:59.5]} 2. Nc3 {[%clk 0:03:00.6]}
2... e6 {[%clk 0:02:59.6]} 3. g3 {[%clk 0:03:00.5]} 3... d5 {[%clk 0:02:59.3]}
4. exd5 {[%clk 0:03:01.4]} 4... exd5 {[%clk 0:02:59.6]} 5. Bg2 {[%clk
0:03:00.8]} 5... Nf6 {[%clk 0:02:59.6]} 6. d4 {[%clk 0:02:59.2]} 6... cxd4
{[%clk 0:02:59.8]} 7. Qxd4 {[%clk 0:02:58.9]} 7... Nc6 {[%clk 0:03:00.4]} 8. Qd1
{[%clk 0:02:49.7]} 8... d4 {[%clk 0:02:59]} 9. Nce2 {[%clk 0:02:49.4]} 9... Bb4+
{[%clk 0:02:56]} 10. Bd2 {[%clk 0:02:49.2]} 10... Bc5 {[%clk 0:02:54.5]} 11. Nf3
{[%clk 0:02:47.4]} 11... O-O {[%clk 0:02:53.9]} 12. O-O {[%clk 0:02:47.5]} 12...
Re8 {[%clk 0:02:52]} 13. Nf4 {[%clk 0:02:47.1]} 13... Bb6 {[%clk 0:02:48.1]} 14.
Nd3 {[%clk 0:02:46.1]} 14... Bf5 {[%clk 0:02:45.3]} 15. Re1 {[%clk 0:02:42.9]}
15... Rc8 {[%clk 0:02:44.3]} 16. Rxe8+ {[%clk 0:02:39.1]} 16... Qxe8 {[%clk
0:02:43.8]} 17. a3 {[%clk 0:02:39.3]} 17... h6 {[%clk 0:02:42.8]} 18. h3 {[%clk
0:02:17.1]} 18... Ne4 {[%clk 0:02:40.2]} 19. g4 {[%clk 0:02:13.9]} 19... Bh7
{[%clk 0:02:39.8]} 20. Bf4 {[%clk 0:02:11.8]} 20... Qe7 {[%clk 0:02:24.7]} 21.
Qe2 {[%clk 0:02:08.8]} 21... Re8 {[%clk 0:02:23.5]} 22. Re1 {[%clk 0:02:07.5]}
22... Bc7 {[%clk 0:02:10.1]} 23. Bxc7 {[%clk 0:02:05.1]} 23... Qxc7 {[%clk
0:02:09.8]} 24. Nd2 {[%clk 0:01:58.4]} 24... f5 {[%clk 0:01:55.8]} 25. gxf5
{[%clk 0:01:46.5]} 25... Nd6 {[%clk 0:01:55.7]} 26. Qd1 {[%clk 0:01:24.3]} 26...
Rxe1+ {[%clk 0:01:54.9]} 27. Qxe1 {[%clk 0:01:25.2]} 27... Bxf5 {[%clk
0:01:53.9]} 28. Nf3 {[%clk 0:01:17.6]} 28... Bxd3 {[%clk 0:01:40.8]} 29. cxd3
{[%clk 0:01:17.5]} 29... Qf7 {[%clk 0:01:40]} 30. Nd2 {[%clk 0:00:53.8]} 30...
Kf8 {[%clk 0:01:33.1]} 31. Ne4 {[%clk 0:00:48.9]} 31... Qe6 {[%clk 0:01:23.8]}
32. Kh2 {[%clk 0:00:39.9]} 32... Qe5+ {[%clk 0:01:21.7]} 33. Kh1 {[%clk
0:00:38.1]} 33... Nxe4 {[%clk 0:01:20]} 34. Bxe4 {[%clk 0:00:39]} 34... Nd8
{[%clk 0:01:13.6]} 35. Qb4+ {[%clk 0:00:37.5]} 35... Ke8 {[%clk 0:01:06.9]} 36.
Qc4 {[%clk 0:00:32.3]} 36... Qf6 {[%clk 0:00:55.9]} 37. Qc7 {[%clk 0:00:22.4]}
37... g5 {[%clk 0:00:38.5]} 38. Kg1 {[%clk 0:00:20.5]} 38... Ne6 {[%clk
0:00:27.1]} 39. Qc8+ {[%clk 0:00:20.5]} 39... Nd8 {[%clk 0:00:20.5]} 40. Qc7
{[%clk 0:00:20.2]} 40... Ne6 {[%clk 0:00:20.3]} 41. Qb8+ {[%clk 0:00:20.1]}
41... Nd8 {[%clk 0:00:20.1]} 42. Qc7 {[%clk 0:00:20.4]} 1/2-1/2

[Event "*** Titled Tuesday Blitz"]
[Site "Chess.com"]
[Date "2021.03.09"]
[Round "9"]
[White "MuhittinBuker"]
[Black "schondeln"]
[Result "0-1"]
[WhiteElo "2174"]
[BlackElo "2407"]
[TimeControl "180+1"]
[EndTime "11:47:47 PST"]
[Termination "schondeln won on time"]

1. d4 {[%clk 0:03:00.9]} 1... d5 {[%clk 0:02:59.1]} 2. c4 {[%clk 0:03:00.5]}
2... c6 {[%clk 0:02:59.2]} 3. Nc3 {[%clk 0:03:00.5]} 3... Nf6 {[%clk 0:02:59.4]}
4. Nf3 {[%clk 0:03:01]} 4... dxc4 {[%clk 0:02:58.6]} 5. a4 {[%clk 0:02:57.9]}
5... Bf5 {[%clk 0:02:57.7]} 6. e3 {[%clk 0:02:57.6]} 6... e6 {[%clk 0:02:57.1]}
7. Bxc4 {[%clk 0:02:58.5]} 7... Bb4 {[%clk 0:02:57.4]} 8. O-O {[%clk 0:02:58.7]}
8... Nbd7 {[%clk 0:02:57.7]} 9. h3 {[%clk 0:02:58.3]} 9... O-O {[%clk
0:02:55.3]} 10. Nh4 {[%clk 0:02:57.8]} 10... Bg6 {[%clk 0:02:55.1]} 11. Nxg6
{[%clk 0:02:57.8]} 11... hxg6 {[%clk 0:02:55.2]} 12. Qe2 {[%clk 0:02:57.5]}
12... Qe7 {[%clk 0:02:53.2]} 13. e4 {[%clk 0:02:55.6]} 13... Rfd8 {[%clk
0:02:34.2]} 14. Bg5 {[%clk 0:02:53.1]} 14... e5 {[%clk 0:02:12.2]} 15. d5 {[%clk
0:02:40.6]} 15... Nb6 {[%clk 0:02:10.4]} 16. dxc6 {[%clk 0:02:37]} 16... bxc6
{[%clk 0:02:09.8]} 17. Bb3 {[%clk 0:02:35.3]} 17... a5 {[%clk 0:02:08.2]} 18.
Rfd1 {[%clk 0:02:33.7]} 18... Rxd1+ {[%clk 0:01:50.8]} 19. Rxd1 {[%clk
0:02:32.4]} 19... Rd8 {[%clk 0:01:51.4]} 20. g4 {[%clk 0:02:03.9]} 20... Rd4
{[%clk 0:01:33.3]} 21. Be3 {[%clk 0:01:35.1]} 21... c5 {[%clk 0:01:26.4]} 22. f3
{[%clk 0:00:56.2]} 22... c4 {[%clk 0:00:50]} 23. Ba2 {[%clk 0:00:30.2]} 23...
Rxd1+ {[%clk 0:00:43.1]} 24. Qxd1 {[%clk 0:00:23]} 24... Bc5 {[%clk 0:00:43]}
25. Qd2 {[%clk 0:00:19.5]} 25... Qd7 {[%clk 0:00:37.3]} 26. Kg2 {[%clk
0:00:14.6]} 26... Bxe3 {[%clk 0:00:36.7]} 27. Qxe3 {[%clk 0:00:13.8]} 27... Nxa4
{[%clk 0:00:37]} 28. Nxa4 {[%clk 0:00:09.7]} 28... Qxa4 {[%clk 0:00:37.9]} 29.
Qa3 {[%clk 0:00:05.8]} 29... Qc2+ {[%clk 0:00:28.7]} 30. Kg3 {[%clk 0:00:02.5]}
30... a4 {[%clk 0:00:26.2]} 31. Qc3 {[%clk 0:00:02]} 31... Qxc3 {[%clk
0:00:19.6]} 32. bxc3 {[%clk 0:00:01.7]} 32... Nd7 {[%clk 0:00:17.9]} 0-1

[Event "*** Titled Tuesday Blitz"]
[Site "Chess.com"]
[Date "2021.03.09"]
[Round "9"]
[White "Eliwood44"]
[Black "SanchezKelvin"]
[Result "1-0"]
[WhiteElo "2494"]
[BlackElo "2581"]
[TimeControl "180+1"]
[EndTime "11:47:48 PST"]
[Termination "Eliwood44 won by checkmate"]

1. d4 {[%clk 0:03:00.9]} 1... Nf6 {[%clk 0:02:44.8]} 2. Nf3 {[%clk 0:03:00.7]}
2... c5 {[%clk 0:02:44]} 3. d5 {[%clk 0:03:00.4]} 3... g6 {[%clk 0:02:43.2]} 4.
Nc3 {[%clk 0:03:00]} 4... Bg7 {[%clk 0:02:43.5]} 5. e4 {[%clk 0:03:00.6]} 5...
d6 {[%clk 0:02:44]} 6. Bb5+ {[%clk 0:03:00.1]} 6... Bd7 {[%clk 0:02:42.9]} 7. a4
{[%clk 0:02:59.9]} 7... O-O {[%clk 0:02:42.6]} 8. h3 {[%clk 0:03:00.3]} 8... Na6
{[%clk 0:02:42.1]} 9. O-O {[%clk 0:02:59.5]} 9... Nc7 {[%clk 0:02:42]} 10. Re1
{[%clk 0:03:00]} 10... Bxb5 {[%clk 0:02:38.7]} 11. axb5 {[%clk 0:02:59.8]} 11...
Nd7 {[%clk 0:02:38.8]} 12. Qd3 {[%clk 0:02:52.1]} 12... Qb8 {[%clk 0:02:32.1]}
13. Bg5 {[%clk 0:02:47.6]} 13... Re8 {[%clk 0:02:31.4]} 14. Bf4 {[%clk
0:02:42.7]} 14... a6 {[%clk 0:02:18.6]} 15. bxa6 {[%clk 0:02:40.5]} 15... Nxa6
{[%clk 0:02:18.4]} 16. Qb5 {[%clk 0:02:34.3]} 16... Qc7 {[%clk 0:02:17.9]} 17.
Bg3 {[%clk 0:02:17.9]} 17... Nb4 {[%clk 0:02:14.7]} 18. Rxa8 {[%clk 0:02:16.5]}
18... Rxa8 {[%clk 0:02:15]} 19. Qc4 {[%clk 0:02:07.3]} 19... Nb6 {[%clk
0:02:06.7]} 20. Qe2 {[%clk 0:02:05]} 20... Na2 {[%clk 0:01:38]} 21. Nb5 {[%clk
0:02:02.7]} 21... Qd7 {[%clk 0:01:37.9]} 22. c4 {[%clk 0:02:02.7]} 22... Nb4
{[%clk 0:01:36.5]} 23. e5 {[%clk 0:02:01.8]} 23... dxe5 {[%clk 0:01:13.2]} 24.
Nxe5 {[%clk 0:02:00.5]} 24... Qf5 {[%clk 0:01:12.9]} 25. b3 {[%clk 0:01:47.2]}
25... Ra2 {[%clk 0:01:08.6]} 26. Qg4 {[%clk 0:01:43.5]} 26... Qxg4 {[%clk
0:00:49.4]} 27. Nxg4 {[%clk 0:01:42.3]} 27... Bf8 {[%clk 0:00:48]} 28. Bc7
{[%clk 0:01:36.3]} 28... Nd7 {[%clk 0:00:46.3]} 29. d6 {[%clk 0:01:27.5]} 29...
exd6 {[%clk 0:00:42.1]} 30. Re8 {[%clk 0:01:26.9]} 30... Kg7 {[%clk 0:00:42.1]}
31. Nxd6 {[%clk 0:01:15.8]} 31... Na6 {[%clk 0:00:29.7]} 32. Rd8 {[%clk
0:01:00.7]} 32... Nxc7 {[%clk 0:00:15.6]} 33. Rxd7 {[%clk 0:01:00.6]} 33... Bxd6
{[%clk 0:00:14.2]} 34. Rxd6 {[%clk 0:01:01.5]} 34... h5 {[%clk 0:00:13.7]} 35.
Ne5 {[%clk 0:01:00.2]} 35... Ne6 {[%clk 0:00:10]} 36. Rd7 {[%clk 0:00:57.6]}
36... Ra1+ {[%clk 0:00:09.8]} 37. Kh2 {[%clk 0:00:57.3]} 37... Kf6 {[%clk
0:00:08.8]} 38. Nxf7 {[%clk 0:00:51.3]} 38... b6 {[%clk 0:00:08.5]} 39. Nd8
{[%clk 0:00:45.7]} 39... Nd4 {[%clk 0:00:08]} 40. Rb7 {[%clk 0:00:34.4]} 40...
Ra6 {[%clk 0:00:03.5]} 41. f4 {[%clk 0:00:32.3]} 41... Nxb3 {[%clk 0:00:03.4]}
42. Rf7# {[%clk 0:00:31.7]} 1-0

[Event "*** Titled Tuesday Blitz"]
[Site "Chess.com"]
[Date "2021.03.09"]
[Round "9"]
[White "eljanov"]
[Black "elextranjero00"]
[Result "0-1"]
[WhiteElo "2836"]
[BlackElo "2663"]
[TimeControl "180+1"]
[EndTime "11:47:49 PST"]
[Termination "elextranjero00 won by checkmate"]

1. e4 {[%clk 0:03:00.9]} 1... e5 {[%clk 0:02:57.4]} 2. Nf3 {[%clk 0:03:00.6]}
2... Nc6 {[%clk 0:02:57.6]} 3. Bc4 {[%clk 0:03:00.3]} 3... Bc5 {[%clk 0:02:55]}
4. c3 {[%clk 0:03:00.4]} 4... Nf6 {[%clk 0:02:54.7]} 5. d3 {[%clk 0:03:00.8]}
5... O-O {[%clk 0:02:53.6]} 6. O-O {[%clk 0:03:01.3]} 6... d6 {[%clk 0:02:51.6]}
7. Re1 {[%clk 0:03:01]} 7... a5 {[%clk 0:02:49.1]} 8. Bb5 {[%clk 0:02:59.5]}
8... Bd7 {[%clk 0:02:47.9]} 9. h3 {[%clk 0:02:55]} 9... Re8 {[%clk 0:02:41.7]}
10. Nbd2 {[%clk 0:02:54.4]} 10... a4 {[%clk 0:02:30]} 11. Nf1 {[%clk 0:02:50.7]}
11... Qb8 {[%clk 0:02:28.1]} 12. Be3 {[%clk 0:02:26.7]} 12... Bxe3 {[%clk
0:02:25.6]} 13. Nxe3 {[%clk 0:02:26.8]} 13... Ne7 {[%clk 0:02:24.9]} 14. Bxd7
{[%clk 0:02:22.2]} 14... Nxd7 {[%clk 0:02:25.8]} 15. Nh4 {[%clk 0:02:21.9]}
15... Qd8 {[%clk 0:02:10]} 16. d4 {[%clk 0:02:02.5]} 16... Nf6 {[%clk
0:01:48.9]} 17. Nef5 {[%clk 0:01:49.2]} 17... Nxf5 {[%clk 0:01:44.2]} 18. Nxf5
{[%clk 0:01:49]} 18... g6 {[%clk 0:01:26.6]} 19. Ng3 {[%clk 0:01:47.8]} 19... h5
{[%clk 0:01:15]} 20. Qf3 {[%clk 0:01:47.4]} 20... Qe7 {[%clk 0:01:08.3]} 21.
Rad1 {[%clk 0:01:23.6]} 21... Ra5 {[%clk 0:00:53.8]} 22. Re2 {[%clk 0:01:12.3]}
22... h4 {[%clk 0:00:48]} 23. Nf1 {[%clk 0:01:11.7]} 23... exd4 {[%clk 0:00:45]}
24. Rxd4 {[%clk 0:01:11.5]} 24... Re5 {[%clk 0:00:38]} 25. Nd2 {[%clk
0:01:01.6]} 25... d5 {[%clk 0:00:37.2]} 26. Rxa4 {[%clk 0:00:52.1]} 26... dxe4
{[%clk 0:00:37.3]} 27. Qe3 {[%clk 0:00:45.2]} 27... Nd5 {[%clk 0:00:34.1]} 28.
Qxe4 {[%clk 0:00:40.9]} 28... Qg5 {[%clk 0:00:19.9]} 29. Qxd5 {[%clk 0:00:25.6]}
29... Rxd5 {[%clk 0:00:19.7]} 30. Rxe8+ {[%clk 0:00:24.8]} 30... Kg7 {[%clk
0:00:20.3]} 31. Nf3 {[%clk 0:00:22.4]} 31... Rd1+ {[%clk 0:00:19.7]} 32. Kh2
{[%clk 0:00:22.8]} 32... Qf6 {[%clk 0:00:18.5]} 33. Rxh4 {[%clk 0:00:16.3]}
33... Qd6+ {[%clk 0:00:16.5]} 34. g3 {[%clk 0:00:16.7]} 34... Qd3 {[%clk
0:00:12.8]} 35. Rf4 {[%clk 0:00:09.8]} 35... Qf1 {[%clk 0:00:12.5]} 36. g4
{[%clk 0:00:10.2]} 36... Qxf2# {[%clk 0:00:10.8]} 0-1

[Event "*** Titled Tuesday Blitz"]
[Site "Chess.com"]
[Date "2021.03.09"]
[Round "9"]
[White "RD4ever"]
[Black "GOGIEFF"]
[Result "1-0"]
[WhiteElo "2919"]
[BlackElo "2888"]
[TimeControl "180+1"]
[EndTime "11:47:50 PST"]
[Termination "RD4ever won by resignation"]

1. d4 {[%clk 0:03:00.9]} 1... Nf6 {[%clk 0:02:59.6]} 2. c4 {[%clk 0:03:00.9]}
2... g6 {[%clk 0:02:59.7]} 3. Nc3 {[%clk 0:03:01.1]} 3... Bg7 {[%clk 0:03:00.1]}
4. e4 {[%clk 0:03:01.6]} 4... d6 {[%clk 0:03:00.7]} 5. Nge2 {[%clk 0:03:02.1]}
5... O-O {[%clk 0:02:57.8]} 6. Ng3 {[%clk 0:03:02.3]} 6... c5 {[%clk 0:02:58.1]}
7. d5 {[%clk 0:03:02.2]} 7... h5 {[%clk 0:02:58.5]} 8. Bg5 {[%clk 0:02:59.8]}
8... Nh7 {[%clk 0:02:58.1]} 9. Be3 {[%clk 0:02:54.1]} 9... h4 {[%clk 0:02:56.5]}
10. Nge2 {[%clk 0:02:54.2]} 10... e6 {[%clk 0:02:50]} 11. dxe6 {[%clk 0:02:43]}
11... Bxe6 {[%clk 0:02:48.5]} 12. Nf4 {[%clk 0:02:43]} 12... Nc6 {[%clk
0:02:43.4]} 13. h3 {[%clk 0:02:38]} 13... Bd4 {[%clk 0:02:33.3]} 14. Qd2 {[%clk
0:02:25.8]} 14... Qf6 {[%clk 0:02:32]} 15. Ncd5 {[%clk 0:02:19.7]} 15... Qg7
{[%clk 0:02:19.7]} 16. Be2 {[%clk 0:02:15.6]} 16... Bxd5 {[%clk 0:02:08.2]} 17.
Nxd5 {[%clk 0:02:12]} 17... Rae8 {[%clk 0:02:05.7]} 18. Bh6 {[%clk 0:02:06.2]}
18... Qe5 {[%clk 0:02:02.5]} 19. O-O {[%clk 0:02:00.8]} 19... Nf6 {[%clk
0:01:51.6]} 20. Bf3 {[%clk 0:01:52.9]} 20... Kh7 {[%clk 0:01:34.7]} 21. Bf4
{[%clk 0:01:26]} 21... Nxe4 {[%clk 0:01:26.3]} 22. Qc2 {[%clk 0:00:53]} 22...
Qf5 {[%clk 0:01:20.8]} 23. Bg4 {[%clk 0:00:52.2]} 23... Nb4 {[%clk 0:01:17.9]}
24. Qb3 {[%clk 0:00:33.9]} 24... Nxd5 {[%clk 0:01:11.5]} 25. Bxf5 {[%clk
0:00:34.1]} 25... Nxf4 {[%clk 0:01:12.1]} 26. Bxe4 {[%clk 0:00:34.4]} 26... Rxe4
{[%clk 0:01:13]} 27. Rfe1 {[%clk 0:00:32]} 27... Re5 {[%clk 0:00:47.8]} 28. Qxb7
{[%clk 0:00:29.9]} 28... Nd3 {[%clk 0:00:45]} 29. Rxe5 {[%clk 0:00:29.8]} 29...
dxe5 {[%clk 0:00:45.9]} 30. Rd1 {[%clk 0:00:25.4]} 30... Nf4 {[%clk 0:00:32.9]}
31. Qxa7 {[%clk 0:00:25.6]} 31... Kg7 {[%clk 0:00:33]} 32. b4 {[%clk 0:00:24.4]}
32... Rd8 {[%clk 0:00:33.5]} 33. bxc5 {[%clk 0:00:20.2]} 33... Bxf2+ {[%clk
0:00:30.2]} 34. Kxf2 {[%clk 0:00:21.1]} 34... Rxd1 {[%clk 0:00:30.6]} 35. c6
{[%clk 0:00:21.7]} 35... Rd2+ {[%clk 0:00:27.3]} 36. Ke1 {[%clk 0:00:21.9]}
36... Rc2 {[%clk 0:00:23.2]} 37. c7 {[%clk 0:00:12.6]} 37... Rxc4 {[%clk
0:00:23.1]} 38. Qb7 {[%clk 0:00:12.2]} 38... Rc2 {[%clk 0:00:23.3]} 39. Kd1
{[%clk 0:00:09.9]} 1-0

[Event "*** Titled Tuesday Blitz"]
[Site "Chess.com"]
[Date "2021.03.09"]
[Round "9"]
[White "FairChess_on_YouTube"]
[Black "hansen"]
[Result "0-1"]
[WhiteElo "2966"]
[BlackElo "2877"]
[TimeControl "180+1"]
[EndTime "11:47:50 PST"]
[Termination "hansen won on time"]

1. Nf3 {[%clk 0:03:00.9]} 1... Nf6 {[%clk 0:02:53.9]} 2. c4 {[%clk 0:03:00.7]}
2... c6 {[%clk 0:02:45.5]} 3. Nc3 {[%clk 0:02:56.2]} 3... d5 {[%clk 0:02:45.8]}
4. e3 {[%clk 0:02:56.5]} 4... g6 {[%clk 0:02:45.9]} 5. d4 {[%clk 0:02:53.3]}
5... Bg7 {[%clk 0:02:46.1]} 6. Be2 {[%clk 0:02:52.9]} 6... O-O {[%clk
0:02:46.4]} 7. O-O {[%clk 0:02:53.5]} 7... a6 {[%clk 0:02:36.8]} 8. a4 {[%clk
0:02:49.1]} 8... a5 {[%clk 0:02:33.1]} 9. b3 {[%clk 0:02:49.3]} 9... Na6 {[%clk
0:02:32.3]} 10. Ba3 {[%clk 0:02:48.8]} 10... Nb4 {[%clk 0:02:14.5]} 11. Ne5
{[%clk 0:02:48.5]} 11... e6 {[%clk 0:02:09.4]} 12. Nd3 {[%clk 0:02:36.1]} 12...
Nxd3 {[%clk 0:02:06.2]} 13. Qxd3 {[%clk 0:02:37]} 13... Re8 {[%clk 0:02:03.2]}
14. Rac1 {[%clk 0:02:36.6]} 14... e5 {[%clk 0:01:58.7]} 15. dxe5 {[%clk
0:02:29.1]} 15... Rxe5 {[%clk 0:01:55.3]} 16. cxd5 {[%clk 0:02:21.9]} 16... Bf5
{[%clk 0:01:55.1]} 17. Qd2 {[%clk 0:02:20.5]} 17... Nxd5 {[%clk 0:01:53.4]} 18.
Rfd1 {[%clk 0:02:20.5]} 18... Qe8 {[%clk 0:01:49.1]} 19. Bf3 {[%clk 0:01:28.7]}
19... Nb4 {[%clk 0:01:32]} 20. Bxb4 {[%clk 0:01:21.1]} 20... axb4 {[%clk
0:01:32.3]} 21. Ne2 {[%clk 0:01:21.5]} 21... Bf8 {[%clk 0:01:27.5]} 22. Nf4
{[%clk 0:01:13.2]} 22... h5 {[%clk 0:01:17]} 23. Be2 {[%clk 0:01:08.8]} 23...
Re7 {[%clk 0:00:57.2]} 24. Qxb4 {[%clk 0:00:50.1]} 24... Rxe3 {[%clk 0:00:54.9]}
25. Qxb7 {[%clk 0:00:50.3]} 25... Re4 {[%clk 0:00:45.7]} 26. Bc4 {[%clk
0:00:40.7]} 26... Rxf4 {[%clk 0:00:40.6]} 27. Bxf7+ {[%clk 0:00:40.9]} 27...
Qxf7 {[%clk 0:00:41.5]} 28. Qxa8 {[%clk 0:00:41.2]} 28... Be4 {[%clk 0:00:36.3]}
29. f3 {[%clk 0:00:37.1]} 29... Rxf3 {[%clk 0:00:32.7]} 30. Rf1 {[%clk
0:00:25.9]} 30... Rf5 {[%clk 0:00:25.6]} 31. Qd8 {[%clk 0:00:18.1]} 31... Qxb3
{[%clk 0:00:16.8]} 32. a5 {[%clk 0:00:12]} 32... Qb2 {[%clk 0:00:09.9]} 33. Rf2
{[%clk 0:00:01.2]} 33... Qxf2+ {[%clk 0:00:09.6]} 0-1